bitfinex/quotes_ETHUSD_20220212
["timestamp","ask_amount","ask_price","bid_price","bid_amount"]
[1644628270884,1.0216727,2938.0,2937.4,0.01971623]
[1644628271287,2.02563464,2938.0,2937.4,0.01971623]
[1644628271535,2.02563464,2938.0,2937.4,0.01692234]
[1644628271938,1.85553464,2938.0,2937.4,0.01692234]
[1644628272742,1.00396194,2938.0,2937.4,0.01692234]
[1644628273139,0.6631,2938.1,2937.4,0.01692234]
[1644628273339,0.1701,2938.1,2937.4,0.01692234]
[1644628273739,0.1701,2938.1,2937.4,0.86841234]
[1644628273939,5.87522,2938.3,2937.4,0.86841234]
[1644628273940,0.1701,2938.3,2937.4,0.86841234]
[1644628274143,7.0836,2938.8,2937.4,0.86841234]
[1644628274144,0.00846084,2938.5,2937.8,0.86468294]
[1644628274344,0.00846084,2938.5,2937.6,0.00846356]
[1644628274345,0.00846084,2938.5,2937.6,0.00946356]
[1644628274539,0.00846084,2938.5,2937.6,0.00846356]
[1644628274939,0.00846084,2938.5,2937.9,0.85126]
[1644628275139,9.3043595,2938.8,2937.9,0.85126]
[1644628275140,0.1701,2938.7,2937.9,0.85126]
[1644628275382,0.00846142,2938.5,2937.9,0.85972327]
[1644628276184,0.1701,2938.7,2937.9,0.85126]
[1644628276585,0.00846171,2938.5,2938.1,0.85978313]
[1644628277385,0.1701,2938.7,2938.1,0.85132]
[1644628277586,0.1701,2938.9,2938.1,0.85132]
[1644628277785,1.04761793,2938.5,2938.2,0.00846304]
[1644628278585,1.03915603,2938.5,2937.8,0.001]
[1644628279026,1.04761803,2938.5,2938.2,0.00846299]
[1644628279828,1.03915603,2938.5,2937.8,0.001]
[1644628280027,1.04761803,2938.5,2938.2,0.00846299]
[1644628281036,1.03915603,2938.5,2938.0,0.85135]
[1644628281235,1.04761803,2938.5,2938.2,0.00846299]
[1644628281939,0.008462,2938.5,2938.2,0.00846299]
[1644628282134,0.008462,2938.5,2938.2,0.85975299]
[1644628282336,1.02141,2939.0,2938.2,0.85129]
[1644628282535,0.008462,2938.5,2938.2,0.85975299]
[1644628282992,0.008462,2938.5,2938.2,0.00846299]
[1644628283393,0.1701,2938.7,2937.8,0.001]
[1644628283593,0.008462,2938.5,2938.2,0.00846299]
[1644628284600,0.1701,2938.7,2938.1,0.85129]
[1644628284897,0.008462,2938.5,2938.2,0.00846299]
[1644628285096,0.008462,2938.5,2938.3,0.85118]
[1644628285896,1.13,2939.1,2938.3,0.85118]
[1644628286098,0.0084621,2938.5,2938.3,0.85964294]
[1644628287141,1.13,2939.1,2938.2,1.70233]
[1644628287337,1.13,2939.1,2938.1,0.1701]
[1644628287338,0.0084621,2938.5,2938.3,0.00846294]
[1644628288238,0.1701,2939.0,2938.1,0.85131]
[1644628288438,0.0084621,2938.5,2938.3,0.00846294]
[1644628288939,0.0084621,2938.5,2938.3,0.85972294]
[1644628289338,0.0084621,2938.5,2938.3,0.8584504]
[1644628289538,0.1701,2939.0,2938.3,0.84998746]
[1644628289742,0.0084621,2938.5,2938.3,0.8584504]
[1644628290319,0.0084621,2938.5,2938.3,0.00846294]
[1644628290710,0.1701,2939.0,2938.1,1.70244]
[1644628290911,0.0084621,2938.5,2938.3,0.00846294]
[1644628291812,0.1701,2939.1,2938.2,4.33682911]
[1644628292111,2.16433907,2939.3,2938.2,4.33682911]
[1644628292112,0.0084621,2938.5,2938.3,0.00846294]
[1644628293112,1.15950567,2939.3,2938.2,4.30546151]
[1644628293314,1.15950567,2939.3,2938.3,0.00846294]
[1644628293315,0.0084621,2938.5,2938.3,0.00846294]
[1644628293513,0.0084621,2938.5,2938.3,1.17856294]
[1644628293711,0.0084621,2938.5,2938.4,3.61511588]
[1644628293911,0.0084621,2938.5,2938.4,3.78521588]
[1644628294333,4.5447,2939.5,2938.6,2.78062796]
[1644628294334,4.4947,2939.5,2938.6,2.78062796]
[1644628294532,0.03384031,2939.3,2938.7,3.64360222]
[1644628295437,1.2663,2939.5,2938.9,0.85102]
[1644628295635,3.7156,2939.6,2938.9,0.85102]
[1644628295636,0.00846153,2939.1,2938.9,0.85102]
[1644628296641,1.03371012,2939.6,2938.9,0.85102]
[1644628296839,0.00846153,2939.1,2938.9,0.85102]
[1644628297889,5.06846,2939.9,2938.9,0.85102]
[1644628297890,0.17829763,2940.2,2939.0,1.75003854]
[1644628298090,17.13456851,2941.0,2939.3,5.01291265]
[1644628298091,0.05,2940.8,2939.3,5.01291265]
[1644628298289,0.05,2940.8,2939.6,0.85073]
[1644628298492,0.05,2940.8,2939.9,0.94914434]
[1644628298695,0.05,2940.8,2940.0,0.17]
[1644628299695,0.05,2940.8,2940.0,1.02077]
[1644628301393,2.21117704,2940.8,2940.0,0.17]
[1644628301649,2.21117704,2940.8,2939.4,0.13819997]
[1644628301841,2.65417704,2940.7,2939.4,0.13819997]
[1644628302038,1.10756631,2940.1,2939.4,0.13819997]
[1644628302644,1.10756631,2940.1,2939.4,0.98913997]
[1644628302839,0.00845865,2939.9,2939.4,0.85094]
[1644628303441,0.00845865,2939.9,2939.0,1.70192]
[1644628303840,1.10988727,2939.6,2939.0,1.70192]
[1644628304040,1.11834621,2939.6,2939.0,1.70192]
[1644628304841,0.00845894,2939.6,2939.0,1.70192]
[1644628305041,1.7049,2940.2,2939.0,1.70192]
[1644628305292,0.00845908,2939.4,2939.0,1.70192]
[1644628306290,1.17282247,2939.8,2939.0,1.70192]
[1644628306588,0.00845917,2939.3,2939.0,1.70192]
[1644628307491,1.17282247,2939.8,2939.0,1.70192]
[1644628307692,0.00845922,2939.3,2939.0,1.70192]
[1644628308691,1.7049,2940.2,2939.0,1.70192]
[1644628308892,0.00845922,2939.3,2939.0,1.70192]
[1644628309947,0.91876243,2939.9,2939.0,1.70192]
[1644628310148,0.00845922,2939.3,2939.0,1.70192]
[1644628310751,0.00845922,2939.3,2939.1,0.1701]
[1644628310954,0.00845922,2939.3,2939.1,0.6631]
[1644628311150,5.0129,2940.7,2939.1,0.6631]
[1644628311352,0.00567051,2939.3,2939.1,4.1631]
[1644628311550,0.00567051,2939.3,2939.1,0.6631]
[1644628311751,0.00567051,2939.3,2939.2,1.0]
[1644628311952,0.00567051,2939.3,2939.2,0.850835]
[1644628312355,0.89183822,2940.4,2939.3,2.03037496]
[1644628312552,5.0129,2940.7,2939.3,3.73202496]
[1644628312553,0.00846481,2939.4,2939.3,3.73202496]
[1644628312794,0.00846481,2939.4,2939.3,5.33202496]
[1644628312996,0.00846481,2939.4,2939.3,8.39799988]
[1644628313398,8.45602778,2940.8,2939.3,8.39799988]
[1644628313796,0.00567051,2939.5,2939.3,8.39799988]
[1644628313996,0.00567051,2939.5,2939.4,3.42221569]
[1644628314398,0.00567051,2939.5,2939.4,1.0]
[1644628314596,8.45602778,2940.8,2939.3,3.73202496]
[1644628314797,7.51,2940.8,2940.0,0.85076]
[1644628314998,0.05,2940.8,2940.0,0.85076]
[1644628316198,0.0056705,2940.5,2940.0,0.85076]
[1644628317036,0.05,2940.8,2940.0,0.85076]
[1644628317234,0.00846955,2940.4,2940.0,0.85076]
[1644628318338,1.00476523,2940.6,2940.0,1.35688181]
[1644628318535,0.0084696,2940.3,2940.0,1.35688181]
[1644628318735,0.0084696,2940.3,2940.0,0.8496723]
[1644628319537,0.05,2940.8,2940.0,0.8496723]
[1644628319737,0.00846964,2940.3,2940.0,0.8496723]
[1644628319937,0.00846964,2940.3,2940.1,3.35971615]
[1644628320296,0.00846964,2940.3,2940.1,5.06091615]
[1644628320483,0.00846964,2940.3,2940.2,3.76993735]
[1644628320687,0.05,2940.8,2940.2,3.76993735]
[1644628320890,0.08387331,2940.8,2940.3,0.88456921]
[1644628321089,0.08387331,2940.8,2940.4,5.44465795]
[1644628321491,0.08387331,2940.8,2940.4,1.70105]
[1644628321891,0.05,2940.8,2940.4,1.70105]
[1644628322091,0.00846922,2940.7,2940.5,1.70101]
[1644628322291,0.00846922,2940.7,2940.6,3.63672818]
[1644628322493,0.00846922,2940.8,2940.6,4.12972818]
[1644628322690,0.00846922,2940.8,2940.7,3.43260406]
[1644628322891,0.00846922,2940.8,2940.6,0.493]
[1644628323092,0.00846922,2940.8,2940.5,1.02053]
[1644628323496,0.00846922,2940.8,2940.5,4.24482338]
[1644628324030,0.00846922,2940.8,2940.5,4.41482338]
[1644628324631,0.00846922,2940.8,2940.5,6.11572958]
[1644628324833,0.00846922,2940.8,2940.6,0.85042]
[1644628325636,0.01694971,2940.8,2940.6,0.85042]
[1644628326638,0.00846922,2940.8,2940.6,1.02042]
[1644628326838,0.01413338,2940.8,2940.6,1.016557]
[1644628327440,0.01413338,2940.8,2940.7,3.46052848]
[1644628327806,0.00846922,2940.8,2940.7,3.46052848]
[1644628327996,0.00846922,2940.8,2940.6,1.016557]
[1644628328196,0.00846922,2940.8,2940.7,3.63160239]
[1644628330803,0.00846922,2940.8,2940.7,4.63160239]
[1644628331003,0.00846922,2940.8,2940.7,4.93160239]
[1644628331207,0.00846922,2940.8,2940.7,5.23160239]
[1644628336389,0.00846922,2940.8,2940.7,1.77]
[1644628336786,0.00846922,2940.8,2940.7,1.47]
[1644628336986,0.00846922,2940.8,2940.7,0.17]
[1644628337689,0.00846922,2940.8,2940.6,0.493]
[1644628338893,0.01695541,2940.8,2940.6,0.493]
[1644628339142,0.01695541,2940.8,2940.4,1.70105]
[1644628339339,0.01695541,2940.8,2939.8,0.42]
[1644628339340,0.01695541,2940.8,2940.0,1.70137]
[1644628339946,1.15088966,2940.8,2940.0,1.70137]
[1644628340245,0.01695483,2940.8,2940.0,1.70137]
[1644628341045,0.00846922,2940.8,2940.0,1.70137]
[1644628341449,0.01695483,2940.8,2940.0,1.70137]
[1644628341646,0.01695483,2940.8,2940.1,1.02499476]
[1644628341847,0.01695483,2940.8,2940.0,1.70137]
[1644628342248,0.00846922,2940.8,2940.0,1.70137]
[1644628342649,0.01695483,2940.8,2940.0,1.70137]
[1644628342890,0.01695483,2940.8,2939.8,1.70159]
[1644628342891,1.07746828,2940.6,2939.8,1.70159]
[1644628344095,0.01695444,2940.8,2939.8,1.70159]
[1644628344693,0.00846922,2940.8,2939.8,1.70159]
[1644628344894,0.01695464,2940.8,2939.8,1.70159]
[1644628345996,0.00846922,2940.8,2939.8,1.70159]
[1644628346298,0.01695464,2940.8,2939.8,2.5522761]
[1644628346538,0.01695464,2940.8,2940.0,0.85069]
[1644628347141,0.00846922,2940.8,2940.0,0.85069]
[1644628347342,0.01695483,2940.8,2940.0,0.85069]
[1644628348144,1.12833343,2940.8,2940.0,0.85069]
[1644628348444,1.11984782,2940.8,2940.0,0.85069]
[1644628348643,0.01695483,2940.8,2940.0,0.85069]
[1644628349246,0.01695483,2940.8,2940.0,0.84939548]
[1644628349443,0.00846922,2940.8,2940.0,0.84939548]
[1644628349845,0.01695483,2940.8,2940.0,0.84939548]
[1644628350290,0.84707455,2940.7,2940.0,0.84939548]
[1644628353894,0.01695473,2940.8,2940.1,0.17]
[1644628354138,0.01695473,2940.8,2940.2,0.85062]
[1644628354338,0.00846922,2940.8,2940.2,0.85062]
[1644628354534,0.01695492,2940.8,2940.3,0.17]
[1644628354935,0.01695492,2940.8,2940.7,0.9921365]
[1644628355135,0.01695492,2940.8,2940.3,0.17]
[1644628355136,0.01695492,2940.8,2940.4,2.5515787]
[1644628355337,0.01695492,2940.8,2940.6,0.85052]
[1644628355535,0.00846922,2940.8,2940.6,0.85052]
[1644628355736,0.01695521,2940.8,2940.6,0.85052]
[1644628356740,0.00846922,2940.8,2940.6,0.85052]
[1644628357044,0.01695541,2940.8,2940.6,0.85052]
[1644628357890,0.00846922,2940.8,2940.7,0.47]
[1644628358189,0.01695541,2940.8,2940.7,0.3]
[1644628359088,0.00846922,2940.8,2940.7,0.3]
[1644628359295,0.00846922,2940.8,2940.6,2.55126]
[1644628359489,0.00846922,2940.8,2940.7,0.17]
[1644628360090,0.00846922,2940.8,2940.7,3.81152601]
[1644628363778,0.00846922,2940.8,2940.7,0.17]
[1644628363979,0.00846922,2940.8,2940.6,0.85052]
[1644628365080,0.00846922,2940.8,2940.6,1.7009538]
[1644628365299,0.01694759,2940.8,2940.6,1.7009538]
[1644628366086,0.01694759,2940.8,2940.6,3.4017338]
[1644628366290,0.00846922,2940.8,2940.6,3.4017338]
[1644628366490,0.01694759,2940.8,2940.6,3.4017338]
[1644628367495,0.00846922,2940.8,2940.7,0.85038]
[1644628367692,0.01694759,2940.8,2940.7,0.85038]
[1644628367893,4.03799699,2942.0,2941.4,0.85043]
[1644628368093,2.16044989,2942.0,2941.4,0.85043]
[1644628368292,5.31354989,2942.1,2941.4,0.85043]
[1644628368794,2.16044989,2942.0,2941.4,0.85043]
[1644628369035,1.01624975,2941.9,2941.4,0.85043]
[1644628369236,2.16044989,2942.1,2941.4,0.85043]
[1644628369434,2.16044989,2942.1,2941.0,1.70085]
[1644628369634,2.16044989,2941.9,2941.0,1.70085]
[1644628369834,2.16044989,2941.9,2941.3,0.85046]
[1644628370040,2.16044989,2942.0,2941.0,1.70085]
[1644628370936,0.87268967,2941.7,2941.3,0.85045]
[1644628371442,0.88116698,2941.7,2941.4,0.00847845]
[1644628372242,0.87268967,2941.7,2941.3,0.85045]
[1644628372444,2.16044989,2942.0,2941.3,0.85045]
[1644628372647,1.1354,2942.2,2941.4,0.0084784]
[1644628372648,0.00847741,2941.7,2941.4,0.0084784]
[1644628373488,2.16044989,2942.0,2941.0,1.70085]
[1644628373787,0.00847741,2941.7,2941.4,0.8588684]
[1644628373989,0.00847741,2941.7,2941.4,0.0084784]
[1644628374688,0.85763648,2941.8,2941.0,1.70085]
[1644628374892,0.00847741,2941.7,2941.4,0.0084784]
[1644628375491,0.00847741,2941.7,2941.4,0.8588684]
[1644628375892,0.85763648,2941.8,2941.4,0.85039]
[1644628376192,0.00847741,2941.7,2941.4,0.0084784]
[1644628377039,0.85763648,2941.8,2941.3,0.85045]
[1644628377240,0.85763648,2941.8,2941.0,1.70085]
[1644628377441,0.00847741,2941.7,2941.4,0.0084784]
[1644628378241,0.85763648,2941.8,2941.3,0.85045]
[1644628378641,0.00847741,2941.7,2941.4,0.0084784]
[1644628379444,6.56426444,2941.8,2941.0,1.70085]
[1644628379643,3.01808637,2941.8,2941.0,1.70085]
[1644628379845,0.00847741,2941.7,2941.4,0.0084784]
[1644628380594,5.75965035,2941.7,2941.4,0.00619597]
[1644628380794,5.75117294,2941.7,2940.6,1.02042]
[1644628380997,5.75117294,2941.7,2940.0,3.40214]
[1644628380998,2.16044989,2941.5,2941.4,7.84e-05]
[1644628381194,4.49492019,2941.5,2941.4,7.84e-05]
[1644628381395,10.95757245,2941.5,2941.4,7.84e-05]
[1644628381594,10.90757245,2941.5,2941.4,7.84e-05]
[1644628381997,0.8507639,2941.3,2940.1,0.17]
[1644628382196,1.18303178,2940.6,2940.1,0.17]
[1644628382495,1.18303178,2940.6,2940.2,0.85073]
[1644628382697,1.18303178,2940.6,2940.3,0.17]
[1644628383096,1.18303178,2940.6,2940.1,0.17]
[1644628384636,1.2058,2941.0,2940.1,0.17]
[1644628384838,4.75682465,2941.0,2940.1,1.0207]
[1644628385038,1.2058,2941.0,2940.1,1.0207]
[1644628385841,1.2058,2941.0,2940.4,0.00847937]
[1644628386043,1.2058,2941.0,2940.5,0.85061]
[1644628386441,1.13709414,2941.1,2940.5,0.85061]
[1644628386842,6.25015483,2941.6,2940.5,1.02061]
[1644628387045,6.25015483,2941.6,2940.7,0.00847913]
[1644628387046,4.41737634,2941.6,2940.7,0.00847913]
[1644628387244,4.41737634,2941.6,2940.9,1.70085]
[1644628387245,0.00847634,2941.6,2940.9,1.70085]
[1644628387448,0.00847634,2941.6,2941.0,0.1698]
[1644628387648,0.00847634,2941.6,2941.0,0.9538]
[1644628387890,9.8687,2942.2,2941.2,1.12803453]
[1644628388091,1.1745,2942.2,2941.4,0.8504]
[1644628388295,0.0056494,2941.6,2941.4,0.8504]
[1644628389095,1.05481321,2942.3,2941.4,0.8504]
[1644628389299,0.00564974,2941.6,2941.4,0.8504]
[1644628390299,1.12827057,2942.3,2941.4,0.8504]
[1644628390497,5.36131869,2942.4,2941.4,0.8504]
[1644628390700,0.00850046,2941.6,2941.4,0.8504]
[1644628391539,3.1997,2942.4,2941.4,0.8504]
[1644628391739,3.1997,2942.4,2941.3,7.07059]
[1644628391740,0.0339945,2942.3,2941.7,0.85011]
[1644628392540,0.0339945,2942.3,2941.7,1.86584534]
[1644628392840,1.13618535,2942.6,2941.7,1.86584534]
[1644628393044,0.00849997,2942.1,2941.7,1.86584534]
[1644628393246,0.00849997,2942.1,2941.7,0.85011]
[1644628393644,0.00849997,2942.1,2941.7,1.01991]
[1644628393846,0.00849997,2942.1,2941.8,0.63119997]
[1644628394043,0.52206794,2943.2,2941.9,1.01976]
[1644628394244,0.52206794,2943.2,2941.9,1.51276]
[1644628394443,0.52206794,2943.2,2942.0,0.3]
[1644628394644,0.01621339,2943.2,2942.6,0.94940042]
[1644628395044,0.01621339,2943.2,2942.7,0.8497357]
[1644628395294,2.02783208,2943.6,2942.7,3.15]
[1644628395492,12.41910297,2944.1,2942.7,0.7698]
[1644628395493,0.00563259,2943.0,2942.7,0.7698]
[1644628395692,0.00563259,2943.0,2942.7,1.01957]
[1644628395895,0.00563259,2943.0,2942.8,0.84983]
[1644628396092,0.00563259,2943.0,2942.9,0.1698]
[1644628396292,0.52100297,2944.1,2942.9,0.1698]
[1644628396494,0.78312253,2944.2,2942.9,0.1698]
[1644628396695,0.00563259,2943.0,2942.9,0.1698]
[1644628397497,0.78312253,2944.2,2942.9,0.1698]
[1644628397699,0.78312253,2944.2,2942.9,0.84979]
[1644628397897,0.78312253,2944.2,2942.9,0.1698]
[1644628398297,1.03114996,2943.8,2942.9,0.1698]
[1644628398504,3.5,2943.7,2942.9,0.1698]
[1644628398700,0.493,2943.6,2942.9,0.1698]
[1644628399036,0.00564468,2943.5,2942.9,0.1698]
[1644628399236,0.49864468,2943.5,2942.9,0.1698]
[1644628399437,0.66129694,2943.5,2942.9,0.1698]
[1644628399640,0.00564468,2943.5,2942.9,0.1698]
[1644628399839,0.85,2943.7,2942.9,0.1698]
[1644628400240,0.00564468,2943.3,2942.9,0.1698]
[1644628401243,1.11686253,2943.7,2942.9,0.1698]
[1644628401445,1.11686253,2943.7,2942.6,1.69978]
[1644628401446,0.00851885,2943.2,2942.7,0.1698]
[1644628401843,0.00851885,2943.2,2942.7,1.94634736]
[1644628402244,0.00851885,2943.2,2942.7,1.77654736]
[1644628402444,1.11686253,2943.7,2942.7,0.84988]
[1644628402644,1.27612253,2944.2,2942.7,0.84988]
[1644628402645,0.008519,2943.1,2942.7,0.84988]
[1644628402893,0.008519,2943.1,2942.8,2.5494213]
[1644628403492,3.69918449,2944.1,2942.8,2.5494213]
[1644628403697,0.90324484,2943.8,2943.2,0.84982]
[1644628403992,0.03407089,2943.5,2943.2,0.84982]
[1644628404392,0.03407089,2943.5,2942.9,0.1698]
[1644628404793,0.78312253,2944.2,2942.9,0.1698]
[1644628404992,0.00851875,2943.3,2943.2,0.84982]
[1644628405597,0.00851875,2943.3,2942.9,0.1698]
[1644628405995,4.64909857,2944.1,2942.9,0.1698]
[1644628406199,0.00797784,2943.2,2942.9,0.1698]
[1644628406397,0.00797784,2943.2,2943.1,0.84987]
[1644628407244,3.55021944,2944.1,2943.1,0.84987]
[1644628407445,3.57124217,2944.1,2943.1,0.84987]
[1644628407845,0.84212919,2943.8,2943.1,0.84987]
[1644628408649,0.84212919,2943.8,2942.9,0.1698]
[1644628408848,0.84212919,2943.8,2943.1,0.84986]
[1644628409046,0.84212919,2943.8,2942.8,1.69968]
[1644628409849,0.84212919,2943.8,2942.8,1.86948]
[1644628410319,0.84992,2944.0,2942.8,1.86948]
[1644628410924,0.00821176,2943.5,2942.8,1.86948]
[1644628411123,0.00821176,2943.5,2942.8,2.71932]
[1644628411324,0.00821176,2943.5,2943.4,1.02673413]
[1644628411723,0.00821176,2943.5,2943.4,2.04610413]
[1644628411922,0.28239212,2944.2,2943.4,2.04610413]
[1644628412122,0.28239212,2944.2,2943.7,0.8495323]
[1644628412325,0.01079476,2944.7,2943.9,5.0]
[1644628412524,0.51555969,2945.7,2944.2,7.54768]
[1644628412725,2.0400746,2946.1,2944.8,0.01281717]
[1644628412927,0.04035807,2945.6,2945.0,7.8578]
[1644628413123,0.49838726,2946.6,2945.2,3.4]
[1644628413325,0.49838726,2946.6,2946.2,1.6974103]
[1644628413326,0.24838726,2946.6,2946.2,1.6974103]
[1644628413524,5.94399483,2947.6,2946.3,0.1696]
[1644628413726,2.03920623,2947.4,2946.1,1.69731]
[1644628414150,2.03920623,2947.4,2946.3,0.3]
[1644628414339,2.03920623,2947.4,2946.3,2.64174]
[1644628414340,1.98920623,2947.4,2946.3,2.64174]
[1644628414546,0.1,2947.9,2946.3,1.34174]
[1644628414747,0.60250266,2947.9,2946.5,1.6973]
[1644628414947,0.96888753,2947.8,2946.6,0.493]
[1644628415246,0.96888753,2947.8,2946.7,0.1696]
[1644628415448,0.1,2947.8,2946.7,0.493]
[1644628415847,0.00803076,2947.4,2946.7,0.493]
[1644628416146,0.00803076,2947.4,2946.8,1.69718]
[1644628416547,0.00803076,2947.4,2946.9,0.84859]
[1644628416750,0.00803076,2947.4,2946.8,1.69718]
[1644628416751,0.1,2947.8,2946.8,1.69718]
[1644628416949,0.1,2947.8,2946.2,0.1696]
[1644628416950,5.0,2947.5,2946.2,0.1696]
[1644628417250,0.1,2947.8,2946.2,0.1696]
[1644628417251,0.553807,2946.7,2946.2,0.1696]
[1644628418499,0.00820135,2946.6,2946.2,0.1696]
[1644628418698,0.00820135,2946.6,2946.0,1.69776]
[1644628419098,0.553807,2946.7,2946.0,1.69776]
[1644628419499,0.00820149,2946.4,2945.6,0.1696]
[1644628419702,0.00820149,2946.4,2945.3,0.1696]
[1644628419899,0.96040172,2945.9,2945.3,0.1696]
[1644628420098,0.00820149,2946.4,2945.3,0.1696]
[1644628420300,1.046807,2946.7,2945.3,0.84916]
[1644628420502,1.046807,2946.7,2945.4,3.57647969]
[1644628420503,0.553807,2946.7,2945.4,3.57647969]
[1644628420703,0.0082021,2945.7,2945.4,3.3958075]
[1644628420903,0.22810258,2946.7,2945.6,1.69791]
[1644628421305,1.10860466,2946.6,2945.6,1.69791]
[1644628421747,1.10860466,2946.6,2945.2,0.793]
[1644628421952,1.10860466,2946.6,2945.2,1.14909]
[1644628422147,1.10860466,2946.6,2945.3,0.84906]
[1644628422549,0.84911,2947.6,2945.6,5.0]
[1644628422750,2.5972339,2948.0,2945.5,1.69793]
[1644628422751,0.1154322,2948.1,2946.9,0.01250612]
[1644628422950,0.1154322,2948.1,2946.9,3.03867]
[1644628423149,0.1154322,2948.1,2947.1,0.84855]
[1644628423150,2.03875677,2948.0,2947.1,0.84855]
[1644628423349,2.03875677,2948.0,2947.2,0.493]
[1644628423549,1.0181562,2947.3,2947.2,0.493]
[1644628423850,1.0181562,2947.3,2945.9,5.8992]
[1644628424049,1.0181562,2947.3,2946.2,1.6976047]
[1644628424249,1.0181562,2947.3,2946.0,0.1696]
[1644628424453,0.00558279,2947.4,2946.1,1.6975]
[1644628424651,0.00558279,2947.4,2946.2,0.1696]
[1644628424949,0.00558279,2947.4,2946.4,1.6975]
[1644628425151,0.6084322,2948.1,2946.5,1.6974186]
[1644628425392,0.00855429,2946.9,2946.5,1.6974186]
[1644628425795,0.00855429,2946.9,2946.5,0.84869]
[1644628426198,0.00855429,2946.9,2946.2,0.1696]
[1644628426397,9.43234579,2947.4,2946.2,0.1696]
[1644628426398,5.84907,2947.2,2946.2,0.1696]
[1644628426596,0.493,2947.0,2946.2,0.1696]
[1644628426798,1.16486457,2946.3,2946.2,0.1696]
[1644628426999,0.0085544,2946.8,2946.2,0.1696]
[1644628427597,3.2311,2946.9,2945.6,0.1696]
[1644628427796,3.2311,2946.9,2946.1,0.00855632]
[1644628427797,0.0085546,2946.6,2946.1,0.00855632]
[1644628427997,0.88664894,2946.5,2946.1,0.00855632]
[1644628428397,3.62499999,2946.4,2946.1,0.00855632]
[1644628428900,3.62499999,2946.4,2945.2,0.1696]
[1644628428903,0.1154322,2948.1,2946.3,0.0127185]
[1644628429180,0.0320351,2947.1,2946.4,0.493]
[1644628429581,0.0320351,2947.1,2946.5,1.69723]
[1644628429780,0.0320351,2947.1,2946.5,3.88744]
[1644628430079,0.87750924,2947.8,2946.6,0.84865]
[1644628430280,0.1154322,2948.1,2946.6,0.84865]
[1644628430482,0.1154322,2948.1,2946.6,4.34865]
[1644628430683,0.1154322,2948.1,2946.7,0.84866]
[1644628430884,0.1154322,2948.1,2946.8,5.19707]
[1644628431082,0.1154322,2948.1,2946.9,4.03713248]
[1644628431287,0.1154322,2948.1,2947.6,1.09826869]
[1644628431484,0.1154322,2948.1,2947.7,0.493]
[1644628431686,0.1154322,2948.1,2947.8,0.63119997]
[1644628431687,3.22e-05,2948.1,2947.8,0.63119997]
[1644628431888,3.22e-05,2948.1,2947.8,4.13119997]
[1644628432090,3.22e-05,2948.1,2947.8,0.63119997]
[1644628432288,2.0,2950.0,2948.6,0.848088]
[1644628432488,2.0,2950.0,2948.7,0.67499953]
[1644628432489,2.49935568,2950.0,2948.7,0.67499953]
[1644628432689,2.49935568,2950.0,2948.9,1.69604]
[1644628433298,5.0,2949.7,2948.4,0.1695]
[1644628433493,5.0,2949.7,2948.1,3.5]
[1644628433494,1.08276841,2948.9,2948.1,0.1695]
[1644628433692,1.08276841,2948.9,2947.8,4.48661997]
[1644628433693,1.08276841,2948.9,2947.9,0.1695]
[1644628433893,5.8484088,2949.4,2947.9,0.1695]
[1644628434093,0.00839859,2949.2,2947.9,3.6695]
[1644628434294,0.00839859,2949.2,2948.9,0.004]
[1644628434499,0.00839859,2949.2,2948.9,5.731e-05]
[1644628434703,5.0,2949.1,2948.9,5.731e-05]
[1644628434898,0.13819997,2949.2,2948.9,5.731e-05]
[1644628435100,0.14659856,2949.2,2948.9,5.731e-05]
[1644628436097,0.13819997,2949.2,2948.9,5.731e-05]
[1644628436299,0.14605309,2949.2,2948.9,5.731e-05]
[1644628437142,0.13819997,2949.2,2948.9,5.731e-05]
[1644628437444,0.14605309,2949.2,2948.9,5.731e-05]
[1644628437841,0.00074269,2948.2,2947.8,0.13819997]
[1644628438041,0.00074269,2948.2,2947.8,0.98661997]
[1644628438244,0.00074269,2948.2,2947.8,0.13819997]
[1644628438845,0.007854,2948.1,2947.7,0.1695]
[1644628439247,0.007854,2948.1,2947.6,0.84849]
[1644628439647,0.00074269,2948.2,2947.6,0.84849]
[1644628440049,0.00789099,2948.0,2947.6,0.84849]
[1644628440304,0.58120858,2948.7,2947.6,0.84849]
[1644628440492,0.58120858,2948.7,2947.4,1.69694]
[1644628440493,5.0,2948.4,2947.4,1.69694]
[1644628440697,5.0,2948.4,2947.0,0.85659379]
[1644628440898,5.0,2948.4,2947.0,0.8487]
[1644628441097,5.0,2948.4,2946.8,0.1696]
[1644628441098,0.91556463,2947.7,2946.8,0.1696]
[1644628441899,0.91556463,2947.7,2946.8,1.01839]
[1644628442098,0.84884,2947.9,2946.8,0.1696]
[1644628442299,0.493,2948.0,2946.8,0.1696]
[1644628442501,5.493,2948.0,2946.8,0.1696]
[1644628442702,5.493,2948.0,2946.7,0.13819997]
[1644628442900,0.493,2948.0,2946.8,1.01838]
[1644628443099,0.493,2948.0,2947.5,1.12540233]
[1644628443303,2.03827888,2948.7,2947.6,3.993]
[1644628443501,0.13819997,2949.2,2947.6,0.493]
[1644628443702,0.13819997,2949.2,2947.7,0.1695]
[1644628443901,0.13819997,2949.2,2947.4,0.6625]
[1644628443902,5.0,2949.0,2947.4,0.6625]
[1644628444141,1.02945331,2948.2,2947.4,0.493]
[1644628444340,1.02945331,2948.2,2947.4,1.34147]
[1644628444540,1.02945331,2948.2,2947.5,1.86657]
[1644628444741,1.02945331,2948.2,2947.7,0.00840032]
[1644628445748,1.02945331,2948.2,2947.6,0.1696]
[1644628445946,1.02945331,2948.2,2947.8,0.00840016]
[1644628446949,1.02945331,2948.2,2947.0,1.69729]
[1644628447147,1.02945331,2948.2,2947.9,0.00785396]
[1644628447992,1.02945331,2948.2,2947.5,0.8486]
[1644628448592,3.50277164,2949.0,2947.9,0.00785391]
[1644628448593,0.0078522,2948.5,2947.9,0.00785391]
[1644628448796,0.0078522,2948.5,2948.0,0.84843]
[1644628448996,0.0078522,2948.5,2948.0,1.01793]
[1644628449196,7.46,2949.1,2948.0,1.01793]
[1644628449397,7.46,2949.1,2948.1,3.32264534]
[1644628449598,0.00785256,2948.5,2948.1,3.21620678]
[1644628449900,0.00785256,2948.5,2948.2,1.42472]
[1644628450202,0.00785256,2948.5,2948.3,3.5]
[1644628450203,5.256e-05,2948.5,2948.3,3.5]
[1644628450503,2.0,2950.0,2948.6,1.69577]